Cogmind - Beta 12 @@@ ROGUE MODE // 2023.11.18 @ 00:59:23 Player: Ev Result: Self-destructed Performance ------------- Evolutions (2) 1000 Regions Visited (3) 600 Robots Destroyed (58) 290 Value Destroyed (1487) 1487 Prototype IDs (3) 60 Alien Tech Used (0) 0 Bonus (0) 0 TOTAL SCORE: 3437 Bonus ------- None Cogmind --------- Core Integrity 487/550 Matter 97/300 Energy 280/280 System Corruption 0% Temperature Cool (0) Movement Treading (160) Location -8/Materials Parts ------- > --- POWER (1) -------- Heavy Ion Engine > --- PROPULSION (3) --- Light Treads Light Treads Light Treads > --- UTILITY (5) ------ Cooling System Medium Storage Unit Light Armor Plating Hardlight Generator Hacking Suite > --- WEAPON (2) ------- Improved Light Cannon > --- INVENTORY (10) --- Heavy Ion Engine Light Treads Cooling System Huge Storage Unit Compact Matter Pod (150) Trap Scanner Targeting Computer Light Armor Plating Hardlight Generator Improved Datajack Peak State ------------ > --- POWER ------------ Heavy Ion Engine > --- PROPULSION ------- Light Treads Light Treads Light Treads > --- UTILITY ---------- Cooling System Medium Storage Unit Light Armor Plating Hardlight Generator Hacking Suite > --- WEAPON ----------- Flak Cannon Flak Cannon > --- INVENTORY -------- Heavy Ion Engine Cooling System Huge Storage Unit High-capacity Matter Pod Targeting Computer Light Armor Plating Improved Light Cannon Datajack [Rating: 23] Favorites ----------- Power Heavy Ion Engine Engine Heavy Ion Engine Propulsion Light Treads Treads Light Treads Leg Aluminum Leg Utility Hacking Suite Device Hardlight Generator Storage Medium Storage Unit Hackware Hacking Suite Protection Light Armor Plating Weapon Flak Cannon Ballistic Gun Assault Rifle Ballistic Cannon Flak Cannon Build | -11 -10 -9 -8 ------- Run | Jun Mat Mat Mat Slots Evolved 4 | . . 2 2 Power . | . . . . Propulsion 1 | . . . 1 Utility 3 | . . 2 1 Weapon . | . . . . Parts Attached 32 | 7 3 14 8 Power 3 | 1 1 1 . Engine 3 | 1 1 1 . Core . | . . . . Reactor . | . . . . Propulsion 9 | 3 . 2 4 Treads 8 | 2 . 2 4 Leg 1 | 1 . . . Wheel . | . . . . Hover . | . . . . Flight . | . . . . Utility 13 | 1 1 9 2 Device 6 | . 1 3 2 Storage 3 | 1 . 2 . Processor . | . . . . Hackware 2 | . . 2 . Protection 2 | . . 2 . Artifact . | . . . . Weapon 7 | 2 1 2 2 Energy Gun . | . . . . Energy Cannon . | . . . . Ballistic Gun 2 | 2 . . . Ballistic Cannon 5 | . 1 2 2 Launcher . | . . . . Special Weapon . | . . . . Impact Weapon . | . . . . Slashing Weapon . | . . . . Piercing Weapon . | . . . . Special Melee Weapon . | . . . . Unidentified Prototypes 1 | . . 1 . Parts Lost 2 | . . 2 . Power . | . . . . Propulsion . | . . . . Utility 1 | . . 1 . Weapon 1 | . . 1 . Highest Loss Streak 1 | . . 1 . To Critical Strikes . | . . . . Average Slot Usage (%) 99 | . 99 99 98 Engine 11 | . 14 11 9 Treads 24 | . 28 22 26 Device 13 | . 13 11 17 Storage 12 | . 14 13 9 Hackware 8 | . . 10 9 Protection 6 | . . 8 9 Ballistic Gun 3 | . 16 . . Ballistic Cannon 18 | . 11 21 17 Naked Turns . | . . . . Heaviest Build 40 | 11 16 38 40 Greatest Support 60 | 40 40 40 60 Greatest Overweight (x) 1 | 1 . . 1 Average Overweight (x) . | . . . . Largest Inventory Capacity 10 | 8 8 10 10 Average Capacity 9 | 7 8 9 10 Most Carried 10 | 5 6 10 10 Average Carried 7 | 1 3 8 8 Final Capacity 10 | 8 8 10 10 Final Carried 10 | 1 6 10 10 Class Distribution -------------------- 55% | Mutant 44% | Scavenger-Mutant Dominant Class ---------------- Mutant | -10/Materials Mutant | -9/Materials Scavenger-Mutant | -8/Materials Resources | -11 -10 -9 -8 ----------- Run | Jun Mat Mat Mat Matter Collected 1771 | 265 353 792 361 Remotely . | . . . . Salvage Created 1276 | . 213 813 250 Parts 92 | . 21 58 13 Haulers Intercepted 3 | . . 3 . Recyclers Shooed . | . . . . Parts Field Recycled . | . . . . Retrieved Matter . | . . . . Parts Self-Destructed . | . . . . Prevented . | . . . . Kills | -11 -10 -9 -8 ------- Run | Jun Mat Mat Mat Combat Hostiles Destroyed 41 | . 9 23 9 Guns 5 | . 5 . . Cannons 36 | . 4 23 9 Classes Destroyed 9 | . 5 3 1 Worker 3 | . 1 1 1 Hauler 3 | . . 3 . Recycler 2 | . . 2 . Operator 3 | . 1 2 . Watcher 6 | . 1 4 1 Swarmer 13 | . 6 7 . Grunt 18 | . 3 10 5 Sentry 9 | . . 6 3 Hunter 1 | . . . 1 Best Kill Streak 10 | . 4 10 2 Combat Bots Only 4 | . 3 4 2 Max Kills in Single Turn 2 | . 1 2 1 Gunslinging . | . . . . Exploded . | . . . . Melee . | . . . . Uniques/NPCs Destroyed . | . . . . Combat | -11 -10 -9 -8 -------- Run | Jun Mat Mat Mat Damage Taken 1265 | . 263 472 530 Core 164 | . 38 63 63 Absorbed by Shields 232 | . . 204 28 Regen/Repaired (Parts) 157 | . . 50 107 Core Remaining (%) 89 | 100 84 84 . Volleys Fired 132 | . 31 67 34 Largest 2 | . 2 2 2 Hottest 88 | . 55 88 88 Shots Fired 258 | . 62 134 62 Gun 33 | . 32 1 . Cannon 225 | . 30 133 62 Launcher . | . . . . Special . | . . . . Kinetic 258 | . 62 134 62 Thermal . | . . . . Explosive . | . . . . Electromagnetic . | . . . . Robot Hit Streak 12 | . 10 12 12 Robot Miss Streak 13 | . 2 13 6 Penetration Max . | . . . . Secondary Targets . | . . . . Shots Hit Robots 191 | . 40 102 49 Core Hits 146 | . 16 92 38 Critical Kills 1 | . 1 . . Critical Parts Destroyed . | . . . . Critical Strikes 5 | . 2 2 1 Destroy 1 | . 1 . . Blast 4 | . 1 2 1 Melee Attacks . | . . . . Impact . | . . . . Slashing . | . . . . Piercing . | . . . . Sneak Attacks . | . . . . Combat Hostiles . | . . . . Follow-up Attacks . | . . . . Damage Inflicted 3405 | . 613 1832 960 Guns 261 | . 246 15 . Cannons 3144 | . 367 1817 960 Explosions . | . . . . Melee . | . . . . Ramming . | . . . . Kinetic 3405 | . 613 1832 960 Thermal . | . . . . Explosive . | . . . . Electromagnetic . | . . . . Impact . | . . . . Slashing . | . . . . Piercing . | . . . . Highest Corruption . | . . . . Average Corruption . | . . . . Corruption Purged . | . . . . Corruption Blocked . | . . . . Overload Shots . | . . . . Overflow Damage . | . . . . Projectiles . | . . . . Explosions . | . . . . Melee . | . . . . Knockbacks 44 | . 3 30 11 Impact . | . . . . Kinetic 43 | . 3 29 11 Secondary 1 | . . 1 . Self-Inflicted Damage . | . . . . Shots . | . . . . Rammed . | . . . . Targets Rammed . | . . . . Kicked . | . . . . Crushed . | . . . . Highest Temperature 284 | . 12 284 1 Average Temperature 63 | . 5 69 1 Received Heat Transfer 502 | . 66 216 220 Effects 1 | . . 1 . Energy Bleed 1 | . . 1 . Siege Activations . | . . . . Robots Corrupted . | . . . . Combat Hostiles . | . . . . Parts Fried . | . . . . Impact Corruptions . | . . . . Robots Melted . | . . . . Combat Hostiles . | . . . . Parts Melted . | . . . . Heat Transferred . | . . . . Parts Sabotaged . | . . . . Parts Stolen . | . . . . Parts Stripped . | . . . . Power Chain Reactions . | . . . . Missiles Intercepted . | . . . . Alert | -11 -10 -9 -8 ------- Run | Jun Mat Mat Mat Peak Influence 389 | . 171 389 187 Initial 77 | . . 52 77 Average 153 | . 75 217 87 Maximum Alert Level 1 | . . 1 . Low Security (%) 71 | 100 100 47 100 Level 1 28 | . . 52 . Level 2 . | . . . . Level 3 . | . . . . Level 4 . | . . . . Level 5 . | . . . . High Security . | . . . . Max Security . | . . . . Squads Dispatched 4 | . 1 1 2 Investigation 1 | . . . 1 Extermination . | . . . . Reinforcement 3 | . 1 1 1 Assault . | . . . . Garrison . | . . . . Intercept . | . . . . Searches Triggered . | . . . . Construction Impeded . | . . . . Haulers Reinforced . | . . . . Active Scanning Responses . | . . . . Cargo Convoy Interrupts . | . . . . Stealth | -11 -10 -9 -8 --------- Run | Jun Mat Mat Mat Distress Signals 8 | . 1 5 2 Communications Jammed . | . . . . Distress Signals . | . . . . Times Spotted 65 | . 13 38 14 Peak Tracking Total 7 | . 3 7 3 Tactical Retreats 4 | . 1 3 . Traps | -11 -10 -9 -8 ------- Run | Jun Mat Mat Mat Traps Triggered 1 | . . . 1 Indirectly . | . . . . Trap Hack Attempts . | . . . . Triggered . | . . . . Disarmed . | . . . . Reprogrammed . | . . . . Reused . | . . . . Traps Extracted . | . . . . Installed . | . . . . Triggered . | . . . . Machines | -11 -10 -9 -8 ---------- Run | Jun Mat Mat Mat Machines Disabled 2 | . . 1 1 Max in Single Turn 1 | . . 1 1 Machines Repaired . | . . . . Machines Sabotaged . | . . . . Overloaded Fab Kills . | . . . . Hacking | -11 -10 -9 -8 --------- Run | Jun Mat Mat Mat Machines Accessed 10 | . 3 5 2 Terminals 6 | . 2 4 . Fabricators . | . . . . Repair Stations 3 | . . 1 2 Recycling Units 1 | . 1 . . Scanalyzers . | . . . . Garrison Access . | . . . . Total Hacks 33 | . 7 17 9 Successful 23 | . 6 12 5 Failed 10 | . 1 5 4 Catastrophic . | . . . . Database Lockouts . | . . . . Manual 8 | . 2 6 . Terminals 18 | . 5 13 . Fabricators . | . . . . Repair Stations 13 | . . 4 9 Recycling Units 2 | . 2 . . Scanalyzers . | . . . . Garrison Access . | . . . . Terminal Hacks 7 | . 2 5 . Robot Analysis 1 | . 1 . . Prototype ID Bank 1 | . . 1 . Alert Level 1 | . . 1 . Unreport Threat 1 | . . 1 . Locate Traps 2 | . 1 1 . Investigation Status 1 | . . 1 . Fabricator Hacks . | . . . . Repair Station Hacks 9 | . . 4 5 Scan Component 5 | . . 2 3 Repair 4 | . . 2 2 Recycling Unit Hacks 2 | . 2 . . Report Inventory 1 | . 1 . . Retrieve Components 1 | . 1 . . Scanalyzer . | . . . . Garrison Access Hacks . | . . . . Unauthorized Hacks 5 | . 2 3 . Terminals 5 | . 2 3 . Track 3 | . 1 2 . Operators 2 | . 1 1 . Fabricators . | . . . . Repair Stations . | . . . . Recycling Units . | . . . . Scanalyzers . | . . . . Garrison Access . | . . . . Data Cores Recovered 1 | . . 1 . Used . | . . . . Hacking Detections 9 | . 2 5 2 Full Trace Events 3 | . . 1 2 Feedback Events . | . . . . Feedback Blocked . | . . . . Robot Schematics Acquired . | . . . . Robots Built . | . . . . Authchips . | . . . . Time . | . . . . Total Robot Build Rating . | . . . . Part Schematics Acquired . | . . . . Parts Built . | . . . . Authchips . | . . . . Time . | . . . . Total Part Build Rating . | . . . . Parts Repaired 4 | . . 2 2 Time 128 | . . 52 76 Parts Recycled . | . . . . Recycled Matter . | . . . . Retrieved Matter . | . . . . Retrieved Components 7 | . 7 . . Parts Scanalyzed . | . . . . Part Schematics Acquired . | . . . . Parts Damaged . | . . . . Bothacking | -11 -10 -9 -8 ------------ Run | Jun Mat Mat Mat Used RIF Installer . | . . . . Robots Hacked . | . . . . Non-combat . | . . . . Combat . | . . . . Robot Hacks Applied . | . . . . Relay Couplers Released . | . . . . Fabnet Peak Effective % . | . . . . Robots Rewired . | . . . . Allies Hacked . | . . . . Hacks Repelled . | . . . . Allies | -11 -10 -9 -8 -------- Run | Jun Mat Mat Mat Total Allies . | . . . . Largest Group . | . . . . Highest-Rated Group . | . . . . Highest-Rated Ally . | . . . . Total Orders . | . . . . Ally Attacks . | . . . . Total Damage . | . . . . Kills . | . . . . Allies Corrupted . | . . . . Allies Melted . | . . . . Intel | -11 -10 -9 -8 ------- Run | Jun Mat Mat Mat Robot Analysis Total 1 | . 1 . . Derelict Logs Recovered . | . . . . Drone Launches . | . . . . Drone Recoveries . | . . . . Exploration | -11 -10 -9 -8 ------------- Run | Jun Mat Mat Mat Turns Passed 3225 | 68 600 1750 807 Spaces Moved 1066 | 39 275 575 177 Core 8 | 8 . . . Treads 1049 | 22 275 575 177 Legs 9 | 9 . . . Wheels . | . . . . Hover . | . . . . Flight . | . . . . Fastest Speed 50 | 50 160 160 160 Average Speed 159 | 137 160 160 160 Slowest Speed 240 | 160 160 160 240 Overloaded Moves . | . . . . Propulsion Burnouts . | . . . . Robots Hopped . | . . . . Cave-ins Triggered . | . . . . Exploration Rate (%) 31 | 3 52 51 19 Regions Visited 3 Branch Regions . Pre-discovered Areas . | . . . . Known Exits Taken . | . . . . Unknown Exits Taken 3 | 1 1 1 . Scrap Searched . | . . . . Spaces Dug . | . . . . Terrain Destroyed . | . . . . Melee . | . . . . Projectile . | . . . . AOE . | . . . . Terrain Rammed . | . . . . Walls Destroyed . | . . . . Machines Disabled . | . . . . Actions | -11 -10 -9 -8 --------- Run | Jun Mat Mat Mat Total 2339 | 54 373 1273 639 Wait 1050 | . 57 587 406 Move 1063 | 38 274 574 177 Hop . | . . . . Pick Up 45 | 8 7 20 10 Fast Attach . | . . . . Attach 21 | 7 1 6 7 Detach . | . . . . Swap 11 | . 2 8 1 Drop 17 | 1 1 11 4 Fire 132 | . 31 67 34 Melee . | . . . . Ram . | . . . . Kick . | . . . . Crush . | . . . . Escape Stasis . | . . . . Rewire . | . . . . Trap . | . . . . Miscellaneous . | . . . . Route ------- -11/Junkyard -10/Materials (discovered 2 exits: *Mat / [*Min]) -9/Materials (discovered 3 exits: *Mat / [*Min] / [*Sto]) -8/Materials History --------- Turn | Location | Event 6 | -11/Junkyard | Discovered new exit (range 16) 69 | -11/Junkyard | Entered Materials 300 | -10/Materials | Build established: Mutant 414 | -10/Materials | Discovered new exit (range 10) 620 | -10/Materials | Discovered new exit (range 15) 669 | -10/Materials | Entered another Materials area 669 | -9/Materials | Evolved 2 slots: Utility x2 774 | -9/Materials | Discovered new exit (range 15) 1086 | -9/Materials | Repaired Hcp. Matter Pod 1113 | -9/Materials | Repaired Lgt. Armor Plating 1747 | -9/Materials | Discovered new exit (range 8) 2102 | -9/Materials | Build established: Scavenger-Mutant 2382 | -9/Materials | Discovered new exit (range 16) 2419 | -9/Materials | Entered another Materials area 2419 | -8/Materials | Evolved 2 slots: Propulsion x1, Utility x1 2889 | -8/Materials | Repaired Hardlight Generator 3010 | -8/Materials | Repaired Flak Cannon 3226 | -8/Materials | Self-destructed Last Messages --------------- 03171_ K-01 Serf cleans the Pressure Siphon. 03171_ K-01 Serf collects debris. 03171_ Dropped Lgt. Treads. 03172_ Acquired 5 matter. 03174_ Acquired 45 matter. 03174_ K-01 Serf cleans the Pressure Siphon. 03175_ K-01 Serf collects debris. 03178_ Acquired 2 matter. 03180_ Triggered Blade Trap. 03180_ Massive razor-sharp blades shoot up from within the floor. 03180_ Flak Cannon severed. 03180_ Lgt. Treads severed. 03184_ Acquired Lgt. Treads. 03185_ U-05 Engineer lays Concrete. 03186_ Acquired 12 matter. 03189_ Acquired Lgt. Treads. 03194_ W-25 Informer sends out distress signal. 03204_ Acquired Hardlight Generator. 03220_ Atomic Centrifuge disabled. 03224_ G-47 Trooper destroyed. Map ----- +----------------------------------------------------+ | ?????????????????????????????????????????????????? | | ?????????????????????????????????????????????????? | | ?????????????????????????????????????????????????? | | ?????????????????????????????????????????????????? | | ?????????????????????????????????????????????????? | | ?????????????????????????????????????????????????? | | ?????????????????????????????????????????????????? | | ?????????????????????????????????????????????????? | | ?????????????????????????????????????????????????? | | ?????????????????????????????????????????????????? | | ?????????????????????????????????????????????????? | | ???????????????????????????????? ???????????????? | | ???????????????????????????????? ???????????????? | | ???????????????????????????????? ???????????????? | | ???????????????????????????????? ???????????????? | | ?????????????????????????????###+###?????????????? | | ?????????????????????????????# ###???????????? | | ?????????????????????????????? ????????????? | | ?????????????????????????????? ????????????? | | ?????????????????????????????? ?????????????? | | ??????????????????????####+### ??????????????? | | ??????????????????????# ## #??????????????? | | ??????????????????????#! ## #??????????????? | | ??????????????????????# """## #??????????????? | | ??????????????????????# ! """## +??????????????? | | ??????????????????????# @ ""## #??????????????? | | ??????????????????????# %%%x] #??????????????? | | ??????????????????????#########= #??????????????? | | ??????????????????????????????#! %#??????????????? | | ??????????????????????????????#! !#??????????????? | | ??????????????????????????????# !=#??????????????? | | ??????????#/???????############[ !#??????????????? | | ?????????? ??? % !* #??????????????? | | ?????????? ??? % #??????????????? | | ?????????? ??? % """" #??????????????? | | ?????????? ????########## """" #??????????????? | | ?????????? ?????????????#* """" #??????????????? | | ?????????? ?????????????# #??????????????? | | ?????????# ?????????????# #??????????????? | | ?????????# ?????????????# """" [#??????????????? | | ?????????# ?????????????# """" #??????????????? | | ?????????# ????########## """" #??????????????? | | ?????????# #????# # % %#??????????????? | | ?????????# #????# """ #% %######?????????? | | ?????????# #????# """ # %""""% # #?????????? | | ?????????# #???## """ #% """" # #?????????? | | ?????????# #???# // # """" # ]!!#?????????? | | ?????????# #???## "]" # # ]!!#?????????? | | ??????####+###### "R" # + !! #?????????? | | ??????# ## """ # """" # #?????????? | +----------------------------------------------------+ Best States ------------- Heat Dissipation 53 Energy Generation 14 Energy Capacity 280 Matter Stores 395 Matter Capacity 500 Sight Range 16 Terrain Scan Range 14 Terrain Scan Density 10 Armor Coverage 150 Evasion (%) 45 Recoil Reduction 3 Offensive Hacking 10 Item Schematics ----------------- None Robot Schematics ------------------ None Fabricated ------------ Nothing Alien Tech Used ----------------- None Achievements -------------- None Challenges ------------ None Game ------ Seed MetafiberGammaCompressor Manual? 0 Play Time 00:27:56 Cumulative 28.7 hours Start 2023.11.18 @ 00:31:21 End 2023.11.18 @ 00:59:23 Sessions 1 Manual Loads 0 Difficulty Rogue Special Mode None Game No. 61 Rogue 61 Adventurer 0 Explorer 0 Win Type - Total 0 Types 0/0/0/0/0/0/0/0/0 Lore% 21 Gallery% 26 Achievement% 19 Wizard Run 0 Options --------- ASCII 0 Keyboard 0 Movement Mouse Keybinds 0 Fullscreen 1 Font 24/Smallcaps Map View 76x50 Tactical HUD 1 Map Filters NONE Filters NONE Steam 1 RUN: f5944c8b-b4a7-46d5-a780-cab45f150119